bitfinex/quotes_ETHUSD_20241120
["timestamp","ask_amount","ask_price","bid_price","bid_amount"]
[1732073761715,3.2638,3073.4,3072.3,0.8278]
[1732073761913,3.2638,3073.4,3072.8,0.9763]
[1732073762204,3.2638,3073.4,3072.3,0.8278]
[1732073762205,0.01,3073.2,3072.5,0.97639]
[1732073762422,3.26403,3073.2,3072.6,0.97634]
[1732073762572,0.01,3073.0,3072.3,0.97645]
[1732073762907,0.8145,3072.9,3072.1,0.97652]
[1732073763216,0.8145,3072.9,3072.3,0.97645]
[1732073763712,0.8145,3072.9,3072.5,0.97637]
[1732073763915,0.01,3073.2,3072.5,0.97637]
[1732073764080,0.01,3073.0,3072.5,0.97637]
[1732073764762,0.01,3073.0,3072.5,0.97639]
[1732073765211,0.01,3073.0,3072.3,0.97645]
[1732073765365,4.0688,3072.9,3072.1,4.156932]
[1732073765567,4.0688,3072.9,3072.4,0.97643]
[1732073765568,0.8145,3072.9,3072.4,0.97643]
[1732073765962,0.8145,3072.9,3072.1,1.156932]
[1732073766219,0.8145,3072.9,3071.9,0.97657]
[1732073766220,0.01,3072.6,3071.9,0.97657]
[1732073766370,0.01,3072.6,3071.7,1.80445]
[1732073766371,0.01,3072.6,3072.0,0.97655]
[1732073766572,3.25486,3072.4,3071.5,0.97669]
[1732073766831,0.8145,3072.2,3071.6,0.18695858]
[1732073766967,0.8145,3072.2,3071.8,0.97662]
[1732073767672,4.06958,3072.2,3071.5,0.97669]
[1732073767873,3.25511,3072.1,3071.4,0.97675]
[1732073768577,0.01,3071.9,3071.2,0.97681]
[1732073768780,0.01,3071.9,3071.2,0.97679]
[1732073769374,3.26533,3071.9,3071.2,0.97679]
[1732073769707,3.25548,3071.8,3071.1,0.97682]
[1732073769878,3.25548,3071.8,3071.0,0.97687]
[1732073769879,0.01,3071.5,3071.0,0.97687]
[1732073770895,0.01,3071.5,3070.8,0.97693]
[1732073771096,0.416194,3071.5,3070.8,0.97693]
[1732073771312,0.416194,3071.5,3070.4,0.97706]
[1732073771313,0.8063,3071.1,3070.4,0.97706]
[1732073771468,0.8063,3071.1,3070.5,0.97702]
[1732073772287,0.7963,3070.6,3070.1,0.97714]
[1732073772826,0.01,3070.5,3070.1,0.97714]
[1732073773322,0.01,3070.5,3069.7,0.1402674]
[1732073773472,0.7963,3070.4,3069.7,0.1402674]
[1732073773678,0.7963,3070.4,3070.0,0.97717]
[1732073774177,0.7963,3070.4,3069.9,0.9772]
[1732073774709,0.7963,3070.4,3070.0,0.97719]
[1732073775488,0.7963,3070.4,3070.0,0.97717]
[1732073775812,0.7963,3070.4,3069.7,0.1402674]
[1732073775988,0.7963,3070.4,3070.1,0.97713]
[1732073776334,3.01,3071.3,3070.1,0.97713]
[1732073776335,0.7963,3071.5,3071.0,0.97684]
[1732073776474,0.7963,3071.5,3071.4,0.97675]
[1732073776976,0.7963,3071.9,3071.6,0.97666]
[1732073777191,0.01,3071.7,3071.6,0.97666]
[1732073777685,0.01,3071.7,3071.5,0.97669]
[1732073778980,0.01,3071.7,3071.3,0.97677]
[1732073779183,0.7963,3071.9,3071.7,0.97664]
[1732073779412,0.7963,3071.9,3071.8,0.97662]
[1732073779874,0.7963,3071.9,3071.6,0.97668]
[1732073780078,0.01,3071.7,3071.6,0.97668]
[1732073780302,0.01,3071.7,3071.4,0.97674]
[1732073780505,0.01,3071.7,3071.0,3.0]
[1732073780506,0.01,3071.7,3071.5,0.97671]
[1732073781214,0.7933,3071.6,3070.9,0.97689]
[1732073781434,0.7933,3071.6,3070.2,0.8103]
[1732073781435,0.01,3071.3,3070.2,0.8103]
[1732073781578,3.01,3072.0,3070.6,0.977]
[1732073781579,0.01,3070.9,3070.6,0.977]
[1732073782621,0.01,3070.7,3070.2,0.9771]
[1732073783491,0.01,3070.7,3070.3,0.97709]
[1732073783948,0.01,3070.7,3069.8,0.97726]
[1732073784166,0.01,3070.9,3070.6,0.977]
[1732073784456,0.01,3070.9,3070.8,0.97694]
[1732073784613,0.01,3070.9,3070.6,0.977]
[1732073784809,0.01,3070.9,3070.7,0.97697]
[1732073785068,0.01,3070.9,3070.8,0.97694]
[1732073786252,0.01,3071.1,3071.0,0.97688]
[1732073786421,0.7547,3071.3,3071.1,0.97684]
[1732073786622,0.01,3071.2,3071.1,0.97684]
[1732073787246,6.91827881,3072.3,3068.1,3.10183206]
[1732073787247,0.01,3072.4,3071.6,0.97667]
[1732073787606,0.01,3072.6,3072.5,0.9764]
[1732073787856,3.25404,3073.1,3071.0,1.95376]
[1732073787857,0.01,3072.0,3071.0,1.95376]
[1732073788010,3.2741,3073.1,3071.6,0.97668]
[1732073788011,0.01,3071.8,3071.6,0.97668]
[1732073788210,0.01,3071.8,3071.3,0.97677]
[1732073788211,0.01,3071.8,3071.3,0.97678]
[1732073788439,0.01,3071.8,3071.5,0.97669]
[1732073788651,0.01,3071.8,3071.5,0.97671]
[1732073788956,0.01,3071.8,3071.0,0.06511644]
[1732073789250,0.01,3071.8,3071.7,0.97665]
[1732073789755,0.01,3071.8,3071.6,0.97668]
[1732073790563,0.01,3071.8,3071.7,0.97665]
[1732073790859,3.25459,3072.6,3071.1,0.06511543]
[1732073790860,0.7547,3072.2,3072.0,0.97656]
[1732073791242,0.01,3071.9,3071.1,0.0651074]
[1732073791454,0.7547,3072.2,3072.0,0.97656]
[1732073791455,0.01,3072.1,3072.0,0.97656]
[1732073791817,0.01,3073.0,3072.4,0.97643]
[1732073792115,0.01,3073.0,3072.7,0.97633]
[1732073792428,4.00842,3073.4,3072.5,0.97638]
[1732073792429,0.01,3072.7,3072.5,0.97638]
[1732073792961,0.7547,3072.6,3072.1,0.97651]
[1732073793415,0.7547,3072.6,3072.1,0.9765]
[1732073793416,0.01,3072.4,3072.1,0.9765]
[1732073793621,0.01,3072.4,3072.0,0.97653]
[1732073793818,0.01,3072.4,3072.1,0.97653]
[1732073794564,0.01,3073.2,3072.7,0.97634]
[1732073794861,0.01,3073.2,3073.1,0.97621]
[1732073795017,0.01,3073.2,3072.9,0.97624]
[1732073795221,0.7647,3073.0,3072.6,0.97634]
[1732073795535,0.7647,3073.0,3072.1,0.8003]
[1732073795536,0.7647,3073.0,3072.5,0.97639]
[1732073795939,0.401878,3072.9,3072.5,0.97639]
[1732073796557,0.01,3072.7,3072.3,0.97646]
[1732073796863,0.01,3072.7,3072.1,0.97652]
[1732073797082,0.01,3072.7,3072.2,0.97647]
[1732073797291,0.01,3072.7,3072.1,0.97652]
[1732073797292,0.01,3072.7,3072.6,0.97637]
[1732073797495,0.01,3072.7,3072.1,0.9765]
[1732073797784,0.01,3072.7,3072.3,0.97644]
[1732073798333,0.01,3072.7,3071.9,2.50315]
[1732073798532,0.01,3072.7,3071.9,0.55]
[1732073798733,0.01,3072.7,3072.6,0.97637]
[1732073798928,0.01,3072.9,3072.7,0.97632]
[1732073799189,0.7647,3073.3,3073.1,0.97618]
[1732073799356,0.01,3073.3,3073.1,0.97618]
[1732073799529,0.01,3073.3,3073.2,0.97618]
[1732073799735,0.01,3073.5,3073.4,0.97611]
[1732073799977,0.7547,3073.6,3073.5,0.97608]
[1732073800196,0.793,3074.0,3073.9,0.97595]
[1732073800337,6.26e-06,3074.1,3073.5,0.97608]
[1732073800550,6.26e-06,3074.1,3074.0,0.97592]
[1732073801437,6.26e-06,3074.1,3073.8,0.97598]
[1732073801836,6.26e-06,3074.1,3074.0,0.97592]
[1732073802038,6.26e-06,3074.1,3073.8,0.97598]
[1732073802864,6.26e-06,3074.1,3074.0,0.97592]
[1732073803068,6.26e-06,3074.1,3073.8,0.97598]
[1732073803307,6.26e-06,3074.1,3073.4,0.9761]
[1732073803308,0.01000626,3074.1,3073.6,0.97604]
[1732073803487,0.793,3074.0,3073.4,0.97611]
[1732073803658,0.01,3073.9,3073.6,0.97602]
[1732073804075,0.01,3073.7,3073.3,0.97612]
[1732073804281,0.01,3073.4,3073.2,0.97615]
[1732073804474,0.01,3073.4,3073.3,0.97614]
[1732073804657,0.01,3073.4,3073.2,0.97618]
[1732073805758,0.01,3073.4,3073.3,0.97614]
[1732073806256,0.01,3073.4,3073.0,0.97623]
[1732073806496,0.01,3073.4,3073.2,0.97617]
[1732073806887,0.01,3073.4,3073.0,0.97623]
[1732073807294,0.01,3073.4,3073.2,0.97617]
[1732073808484,0.01,3073.4,3073.3,0.97614]
[1732073808884,0.01,3073.4,3073.2,0.97617]
[1732073810018,0.01,3073.4,3073.0,0.97624]
[1732073810173,0.01,3073.4,3073.2,0.97617]
[1732073810371,0.01,3073.5,3073.3,0.97613]
[1732073810814,0.01,3073.8,3073.2,0.97617]
[1732073811014,0.01,3073.8,3073.4,0.97609]
[1732073811214,0.3903,3073.8,3073.4,0.97609]
[1732073811519,0.3903,3073.8,3073.6,0.97604]
[1732073811671,0.01,3073.8,3073.6,0.97604]
[1732073811869,6.26e-06,3074.1,3073.9,0.97595]
[1732073811870,0.01000626,3074.1,3073.9,0.97595]
[1732073812113,6.26e-06,3074.1,3073.9,0.97595]
[1732073812268,0.01000626,3074.1,3073.9,0.97595]
[1732073813304,0.01000626,3074.1,3073.2,1.04124446]
[1732073813305,0.01000626,3074.1,3073.7,0.97601]
[1732073813491,0.01000626,3074.1,3073.8,0.97598]
[1732073814078,0.01000626,3074.1,3073.2,0.97618]
[1732073814079,0.01000626,3074.1,3073.9,0.97595]
[1732073814281,0.01000626,3074.1,3074.0,0.97592]
[1732073814812,0.01000626,3074.1,3073.9,0.97595]
[1732073815012,0.01000626,3074.1,3074.0,0.97592]
[1732073815319,6.26e-06,3074.1,3074.0,0.97592]
[1732073816680,6.26e-06,3074.1,3073.9,0.97595]
[1732073816991,0.01000626,3074.1,3073.9,0.97595]
[1732073817188,0.01000626,3074.1,3074.0,0.97592]
[1732073817745,6.26e-06,3074.1,3074.0,0.97592]
[1732073818077,6.26e-06,3074.1,3074.0,1.171107]
[1732073818280,6.26e-06,3074.1,3074.0,1.23616117]
[1732073819506,6.26e-06,3074.1,3074.0,1.171107]
[1732073820285,6.26e-06,3074.1,3074.0,5.496907]
[1732073820521,6.26e-06,3074.1,3074.0,5.56195151]
[1732073820923,0.7947,3075.7,3075.3,0.97548]
[1732073821222,0.7947,3075.7,3074.5,0.01]
[1732073821223,0.7947,3075.7,3075.2,0.97554]
[1732073821449,0.01,3075.5,3075.0,0.97558]
[1732073821602,0.32614,3075.4,3075.0,0.97558]
[1732073822189,0.01,3075.5,3074.9,0.97562]
[1732073822400,3.2517,3075.4,3074.7,0.97568]
[1732073822704,0.7947,3074.8,3074.1,0.97588]
[1732073822908,0.01,3074.4,3074.0,0.97592]
[1732073823089,0.01,3074.4,3074.1,0.97587]
[1732073823292,0.01,3074.4,3074.3,0.97583]
[1732073823650,0.01,3074.6,3074.3,0.9758]
[1732073823807,0.01,3074.6,3074.2,0.97586]
[1732073824431,0.01,3074.6,3074.4,0.97579]
[1732073824633,0.01,3075.0,3074.8,0.97567]
[1732073824840,0.7947,3075.1,3075.0,0.9756]
[1732073825141,0.8047,3075.4,3075.2,0.97554]
[1732073825349,3.251,3076.0,3075.2,0.97554]
[1732073825350,0.01,3075.7,3075.6,0.9754]
[1732073825497,0.01,3076.0,3075.9,0.97532]
[1732073825699,0.01,3076.0,3075.7,0.97538]
[1732073827106,0.01,3076.0,3075.5,0.97543]
[1732073827442,0.01,3075.8,3075.5,0.97544]
[1732073827770,0.01,3076.0,3075.7,0.97538]
[1732073827943,1.209236,3076.2,3075.9,0.97532]
[1732073828091,0.01,3076.2,3076.1,0.97526]
[1732073828605,0.01,3076.4,3076.1,0.97526]
[1732073828793,0.01,3076.4,3076.2,0.97522]
[1732073829011,0.01,3076.4,3076.0,0.97526]
[1732073829219,0.01,3076.4,3076.1,0.97525]
[1732073829537,0.01,3076.6,3076.2,0.9752]
[1732073829745,0.01,3076.6,3076.3,0.97519]
[1732073830030,0.01,3076.6,3076.4,0.97515]
[1732073831221,0.01,3076.6,3076.5,0.97513]
[1732073831509,0.7947,3076.8,3076.7,0.97507]
[1732073831510,0.01,3076.8,3076.7,0.97507]
[1732073831724,0.01,3077.0,3076.7,0.97507]
[1732073832230,0.01,3076.6,3076.2,0.97521]
[1732073832433,0.7871,3076.5,3076.2,0.97521]
[1732073832640,0.7871,3076.5,3075.8,0.762]
[1732073832853,0.7871,3076.5,3076.2,0.9752]
[1732073833260,0.01,3075.9,3075.5,1.73743]
[1732073833413,0.01,3075.9,3075.6,0.97541]
[1732073833610,0.01,3075.9,3075.8,0.97535]
[1732073833853,0.01,3075.7,3075.4,0.97547]
[1732073834022,0.01,3075.7,3075.6,0.97541]
[1732073834346,0.01,3076.0,3075.8,0.97533]
[1732073835352,0.01,3075.7,3075.1,0.97556]
[1732073835551,0.01,3075.7,3075.2,0.97553]
[1732073835753,0.01,3075.7,3075.1,0.97557]
[1732073835929,0.404837,3075.6,3075.1,0.97557]
[1732073836313,3.26129,3075.7,3075.1,0.97557]
[1732073836734,0.01,3075.7,3074.9,0.06503531]
[1732073837049,0.7971,3076.2,3075.9,0.97532]
[1732073837354,0.7971,3076.2,3076.0,0.97527]
[1732073837355,0.01,3076.2,3076.0,0.97527]
[1732073837858,0.01,3076.4,3076.1,0.97526]
[1732073838064,0.7971,3076.6,3076.3,0.97519]
[1732073838267,0.01,3076.4,3076.1,0.97525]
[1732073838550,0.7971,3076.6,3076.4,0.97514]
[1732073838775,0.01,3076.8,3076.0,0.97527]
[1732073838927,0.01,3076.8,3076.7,0.97507]
[1732073839460,0.01,3077.0,3076.8,0.97502]
[1732073839666,0.7871,3077.2,3077.0,0.97495]
[1732073839667,0.01,3077.2,3077.0,0.97495]
[1732073839953,0.01,3077.2,3077.1,0.97494]
[1732073840176,0.01,3077.2,3077.0,0.97495]
[1732073840402,0.01,3077.0,3076.6,0.97509]
[1732073840973,0.01,3076.8,3076.3,0.97519]
[1732073841155,0.01,3076.6,3076.0,0.97527]
[1732073841362,0.336015,3076.6,3076.0,0.97527]
[1732073841713,0.336015,3076.6,3075.5,3.0]
[1732073841714,0.01,3076.2,3075.6,0.97541]
[1732073842014,0.01,3076.0,3074.9,0.762]
[1732073842169,0.01,3076.0,3075.4,0.97547]
[1732073842559,3.26098,3076.0,3075.4,0.97547]
[1732073842904,0.01,3076.0,3075.5,0.97545]
[1732073843194,0.01,3076.2,3075.9,0.97529]
[1732073843573,0.01,3076.2,3075.7,0.97537]
[1732073844091,0.01,3076.4,3075.9,0.97529]
[1732073844293,0.01,3076.2,3075.7,1.95073]
[1732073844523,0.01,3076.2,3075.7,0.97536]
[1732073844524,0.3764311,3076.2,3075.7,0.97536]
[1732073845612,0.01,3075.9,3075.2,0.762]
[1732073845763,0.01,3076.1,3075.6,0.9754]
[1732073845968,0.37172211,3076.1,3075.7,0.97538]
[1732073846270,0.01,3076.4,3076.2,0.97522]
[1732073846513,0.7871,3076.5,3076.2,0.97522]
[1732073846719,0.01,3076.6,3076.4,0.97516]
[1732073847534,0.788,3076.8,3076.5,0.97513]
[1732073847685,0.01,3076.8,3076.6,0.97509]
[1732073847880,0.01,3076.8,3076.7,0.97507]
[1732073848087,0.01,3077.0,3076.7,0.97507]
[1732073848399,0.01,3077.0,3076.8,0.97502]
[1732073848922,0.01,3077.0,3076.7,0.97507]
[1732073849128,0.01,3077.2,3077.1,0.97494]
[1732073849324,0.01,3077.4,3077.2,0.9749]
[1732073849631,0.01,3077.6,3077.2,0.97488]
[1732073849799,0.01,3077.6,3077.3,0.97487]
[1732073849986,0.01,3077.6,3077.5,0.97481]
[1732073850307,0.01,3077.9,3077.5,0.97481]
[1732073850507,0.01,3077.9,3077.6,0.97478]
[1732073850508,0.413676,3077.9,3077.6,0.97478]
[1732073850715,0.01,3077.9,3077.3,1.79266]
[1732073851019,0.01,3077.9,3077.5,0.9748]
[1732073851232,0.413683,3077.9,3077.3,2.76751]
[1732073851603,0.413683,3077.9,3077.4,0.97484]
[1732073851807,3.24929,3077.6,3076.9,1.79278]
[1732073852025,3.25929,3077.6,3076.9,0.97498]
[1732073852226,3.25929,3077.6,3076.7,0.97505]
[1732073852408,4.02739,3077.5,3076.9,0.975]
[1732073852616,4.353319,3077.5,3076.9,0.975]
[1732073853132,3.24949,3077.4,3076.7,0.97504]
[1732073853433,3.24949,3077.4,3076.6,0.78951044]
[1732073853434,3.25971,3077.2,3076.6,0.78951044]
[1732073853994,3.25971,3077.2,3076.5,0.87996421]
[1732073854194,3.25971,3077.2,3076.4,0.8131025]
[1732073854195,0.778,3076.9,3076.4,0.8131025]
[1732073854410,0.778,3076.9,3076.0,0.33083758]
[1732073854716,0.778,3076.9,3076.5,0.9751]
[1732073855936,3.33723481,3076.8,3076.0,0.97526]
[1732073856138,0.41152348,3076.7,3076.0,0.97526]
[1732073856432,3.26041,3076.6,3076.0,0.97526]
[1732073856639,3.26041,3076.6,3075.9,0.97531]
[1732073856795,0.01,3076.4,3075.9,0.97531]
[1732073857224,0.01,3076.4,3076.0,0.97528]
[1732073857425,0.01,3076.4,3076.1,0.97525]
[1732073857832,0.01,3076.4,3075.9,0.97531]
[1732073858036,0.01,3076.4,3076.0,0.97529]
[1732073859179,0.788,3076.9,3076.4,0.97514]
[1732073859347,0.778,3077.2,3076.7,0.97504]
[1732073859666,0.788,3077.2,3076.7,0.97504]
[1732073860450,0.01,3077.0,3076.4,0.97515]
[1732073860770,0.01,3077.0,3076.0,1.74977]
[1732073860771,0.01,3076.6,3076.0,1.74977]
[1732073860968,0.01,3077.0,3076.6,0.9751]
[1732073862171,0.01,3077.0,3076.4,0.97516]
[1732073862172,0.01,3077.0,3076.4,0.97515]
[1732073862378,0.41377,3077.0,3076.4,0.97515]
[1732073862532,0.41377,3077.0,3076.5,0.97513]
[1732073862911,0.788,3077.2,3076.7,0.97506]
[1732073863071,0.788,3077.2,3076.1,0.06500582]
[1732073863367,0.01,3077.2,3076.9,1.94995]
[1732073863571,0.01,3077.2,3077.0,0.97496]
[1732073864074,0.01,3077.2,3076.9,0.97497]
[1732073864773,0.01,3078.3,3077.6,0.7745]
[1732073865075,0.01,3078.0,3077.9,0.97467]
[1732073865957,0.01,3078.0,3077.6,0.97477]
[1732073866534,0.01,3078.0,3077.4,0.97484]
[1732073866745,0.01,3078.0,3077.5,0.97481]
[1732073866944,0.335872,3078.0,3077.5,0.97481]
[1732073867552,0.335872,3078.0,3077.2,0.06497207]
[1732073867879,0.01,3078.0,3077.4,0.97484]
[1732073868066,3.25893,3078.0,3077.4,0.97484]
[1732073868579,3.249,3077.9,3077.2,0.97489]
[1732073868752,3.899784,3077.9,3077.2,0.97489]
[1732073868953,3.899784,3077.9,3077.3,0.97485]
[1732073869545,0.650784,3077.9,3077.4,0.97484]
[1732073869859,3.25887,3078.0,3077.7,0.97474]
[1732073869860,0.01,3078.0,3077.7,0.97474]
[1732073870181,0.01,3078.0,3077.8,0.97471]
[1732073870907,0.01,3078.6,3078.2,0.97457]
[1732073872293,0.01,3078.6,3078.3,0.97455]
[1732073872468,1.7992543,3078.7,3078.2,1.74906]
[1732073872665,0.01,3078.6,3078.2,1.74906]
[1732073872897,0.19092543,3078.6,3078.0,0.97465]
[1732073873052,0.98052543,3078.6,3078.3,0.97454]
[1732073873252,0.19092543,3078.6,3078.3,0.97454]
[1732073873452,0.01,3078.6,3078.3,0.97454]
[1732073874062,0.01,3078.6,3078.1,0.97461]
[1732073874268,0.01,3078.6,3077.9,3.97468]
[1732073874269,0.01,3078.6,3077.9,0.97468]
[1732073874482,3.24834,3078.5,3077.9,0.97468]
[1732073874663,3.24834,3078.5,3077.7,0.97475]
[1732073874664,0.50575943,3078.5,3077.7,0.97475]
[1732073874879,0.01,3078.6,3077.9,0.97468]
[1732073875056,0.01,3078.6,3077.7,0.97475]
[1732073875057,3.24861,3078.3,3077.7,0.97475]
[1732073875397,3.24861,3078.3,3077.5,0.9748]
[1732073875609,3.24861,3078.3,3077.7,0.97472]
[1732073875782,3.977267,3078.3,3077.7,0.97472]
[1732073876108,3.987267,3078.3,3077.7,0.97472]
[1732073876313,3.987267,3078.3,3077.5,0.9748]
[1732073876314,0.01,3078.0,3077.5,0.9748]
[1732073876801,0.335883,3078.0,3077.3,0.97486]
[1732073877108,3.25886,3078.0,3077.4,0.97482]
[1732073877265,0.01,3078.0,3077.4,0.97482]
[1732073877465,0.01,3078.0,3077.5,0.97481]
[1732073878594,0.325882,3077.9,3077.5,0.97481]
[1732073878834,0.01,3078.0,3077.5,0.97481]
[1732073879043,0.01,3078.0,3077.6,0.97478]
[1732073879399,0.01,3078.0,3077.5,0.97481]
[1732073880038,0.01,3078.0,3077.7,0.97473]
[1732073880553,3.25887,3078.0,3077.5,0.97481]
[1732073880698,0.335887,3078.0,3077.4,0.97483]
[1732073880896,3.584777,3078.0,3077.4,0.97483]
[1732073881098,3.584777,3078.0,3077.3,0.97487]
[1732073881099,0.86670481,3077.9,3077.3,1.94973]
[1732073881332,0.7896,3077.9,3077.4,0.97484]
[1732073881535,4.03859,3077.9,3077.4,0.97484]
[1732073881751,1.55964718,3077.9,3077.4,0.97484]
[1732073882131,4.03863,3077.9,3077.3,0.97486]
[1732073882312,0.7896,3077.9,3077.4,0.97484]
[1732073882522,0.01,3078.0,3077.5,1.7493]
[1732073882749,0.01,3078.0,3077.5,0.9748]
[1732073884154,0.01,3078.0,3077.4,0.97484]
[1732073884458,0.01,3078.0,3077.6,0.97478]
[1732073884621,0.01,3078.0,3077.4,1.94966]
[1732073884825,0.335878,3078.0,3077.3,0.97488]
[1732073885222,3.584838,3078.0,3077.4,0.97483]
[1732073885425,0.6833608,3077.9,3077.4,0.97483]
[1732073886359,3.25896,3078.0,3077.4,0.97483]
[1732073887366,3.24905,3077.9,3077.3,3.0]
[1732073887522,3.24905,3077.9,3077.2,1.7494]
[1732073887724,3.25896,3078.0,3077.2,1.7494]
[1732073887925,0.325896,3077.9,3077.2,1.7494]
[1732073888124,3.574866,3077.9,3077.3,3.97487]
[1732073888320,0.01,3078.0,3077.5,0.97481]
[1732073888526,0.01,3078.2,3078.1,0.97462]
[1732073888838,1.7992543,3078.7,3078.4,0.9745]
[1732073888839,2.5888543,3078.7,3078.4,0.9745]
[1732073889039,2.5888543,3078.7,3077.9,0.06496272]
[1732073889040,0.01,3078.6,3077.9,0.06496272]
[1732073889257,0.7896,3078.3,3077.6,0.97476]
[1732073889463,3.32534481,3078.6,3077.6,0.97476]
[1732073889464,0.7996,3078.6,3078.2,0.97457]
[1732073889632,1.32804845,3078.6,3078.2,0.97457]
[1732073889830,1.33804845,3078.6,3078.2,0.97457]
[1732073890030,1.32804845,3078.6,3078.2,0.97457]
[1732073890343,1.32804845,3078.6,3077.9,0.97468]
[1732073890344,0.01,3078.4,3077.9,0.97468]
[1732073890767,3.25844,3078.4,3077.9,0.97468]
[1732073891121,0.01,3078.4,3077.9,0.97468]
[1732073891333,0.325842,3078.3,3077.9,0.97466]
[1732073891923,0.01,3078.4,3078.2,0.97457]
[1732073892921,0.7896,3078.6,3077.7,3.06497108]
[1732073892922,0.7896,3078.6,3078.1,0.97459]
[1732073893362,0.7896,3078.6,3078.3,0.97454]
[1732073894439,0.01,3078.4,3077.8,1.52469]
[1732073894632,0.01,3078.4,3077.9,0.97468]
[1732073895727,0.01,3078.4,3078.0,0.97465]
[1732073896236,0.01,3078.4,3077.9,0.97468]
[1732073896442,3.25847,3078.4,3077.7,1.03969218]
[1732073896642,3.67748835,3078.3,3077.7,0.97472]
[1732073896869,3.67748835,3078.3,3077.4,0.7745]
[1732073896870,0.01,3078.0,3077.4,0.7745]
[1732073897156,0.01,3078.0,3077.8,0.97471]
[1732073898789,0.01,3078.0,3077.7,0.97474]
[1732073899091,0.01,3078.3,3078.0,0.97463]
[1732073899295,0.7996,3078.6,3078.1,0.06497497]
[1732073899451,0.7996,3078.6,3078.2,0.97458]
[1732073899652,1.38429643,3078.6,3078.2,0.97458]
[1732073899880,0.01,3078.4,3078.0,0.97464]
[1732073900047,0.01,3078.4,3077.9,0.97467]
[1732073900249,0.01,3078.4,3078.0,0.97464]
[1732073900448,0.01,3078.4,3078.2,0.97459]
[1732073900856,0.01,3078.3,3078.2,0.97459]
[1732073901593,0.01,3078.3,3077.8,1.0396778]
[1732073901801,0.01,3078.3,3077.9,0.97466]
[1732073902095,0.01,3078.3,3078.0,0.97465]
[1732073904202,0.01,3078.3,3077.8,0.97471]
[1732073904420,0.01,3078.3,3077.9,0.97467]
[1732073904573,0.01,3078.3,3078.0,0.97465]
[1732073905081,0.01,3078.3,3078.0,0.97464]
[1732073905401,0.01,3078.3,3078.2,0.97459]
[1732073906874,0.01,3078.5,3078.2,0.97459]
[1732073909187,1.7992543,3078.7,3078.4,0.97452]
[1732073909875,1.7992543,3078.7,3078.5,0.9745]
[1732073910073,1.7992543,3078.7,3078.0,0.06496216]
[1732073910074,2.05595973,3078.7,3078.0,0.06496216]
[1732073910324,2.05595973,3078.7,3077.1,3.409]
[1732073910325,0.7578,3078.5,3077.8,0.97471]
[1732073910616,0.7578,3078.5,3077.7,0.97475]
[1732073910772,0.7578,3078.5,3078.3,0.97456]
[1732073911213,0.21559597,3078.6,3078.3,0.97456]
[1732073911713,0.21559597,3078.6,3077.9,0.8014]
[1732073911714,0.21559597,3078.6,3078.0,0.97465]
[1732073911917,0.22715557,3078.5,3078.1,0.97462]
[1732073912914,0.22715557,3078.5,3078.0,1.03961835]
[1732073913123,0.22715557,3078.5,3078.2,0.97459]
[1732073913322,0.22715557,3078.5,3078.0,0.06496835]
[1732073913323,0.22715557,3078.5,3078.3,0.97456]
[1732073913476,0.22715557,3078.5,3078.1,0.9746]
[1732073913677,0.22715557,3078.5,3078.0,0.97463]
[1732073913874,0.22715557,3078.5,3078.2,0.97459]
[1732073914322,0.22715557,3078.5,3078.3,0.97455]
[1732073914688,0.22715557,3078.5,3078.2,0.97457]
[1732073915021,2.05595973,3078.7,3078.2,0.97457]
[1732073915022,1.7992543,3078.7,3078.6,0.97446]
[1732073916041,1.7992543,3078.7,3078.6,1.77586]
[1732073919331,1.7992543,3078.7,3078.6,0.97446]
[1732073923088,1.7992543,3078.7,3078.6,1.169356]
[1732073923241,1.7992543,3078.7,3078.6,0.97446]
[1732073924208,1.7992543,3078.7,3078.6,1.52446]
[1732073924445,1.7992543,3078.7,3078.6,2.35481531]
[1732073924646,1.7992543,3078.7,3078.6,2.28986]
[1732073924868,1.7992543,3078.7,3078.6,6.0202414]
[1732073926014,4.3e-06,3078.7,3078.6,9.4392414]
[1732073926234,4.3e-06,3078.7,3078.6,6.0302414]
[1732073926863,4.3e-06,3078.7,3078.6,9.4392414]
[1732073927614,0.7734,3080.2,3080.0,0.97401]
[1732073927928,0.01,3080.0,3079.8,0.97407]
[1732073928333,0.01,3080.0,3079.5,0.97417]
[1732073929217,4.01027,3079.9,3079.3,0.97421]
[1732073929559,4.01027,3079.9,3079.2,1.94852]
[1732073929560,3.25703,3079.8,3079.2,1.94852]
[1732073929729,3.25703,3079.8,3079.2,0.97425]
[1732073930136,0.01,3079.8,3078.9,3.06494373]
[1732073930321,0.01,3079.8,3078.6,0.7303814]
[1732073930322,0.8196,3079.2,3078.6,0.97444]
[1732073930709,0.8196,3079.2,3079.0,0.97432]
[1732073930913,0.8196,3079.2,3079.1,0.97431]
[1732073931058,0.8196,3079.2,3079.0,0.97432]
[1732073931387,0.01,3079.3,3079.1,0.97431]
[1732073931789,0.01,3079.3,3079.2,0.97427]
[1732073931968,0.8196,3079.5,3079.2,0.97427]
[1732073932369,0.01,3079.4,3079.2,0.97427]
[1732073932618,0.8196,3079.5,3079.2,0.97427]